bitfinex/quotes_SOLUSD_20241125
["timestamp","ask_amount","ask_price","bid_price","bid_amount"]
[1732522204449,20.5477,254.1,254.05,1.1808]
[1732522204741,20.5477,254.1,254.07,20.0]
[1732522204936,20.5477,254.1,254.08,5.45233412]
[1732522205444,20.5477,254.1,254.05,21.1808]
[1732522205780,20.5477,254.1,254.03,1.1809]
[1732522206447,20.5477,254.1,254.03,6.63323412]
[1732522206625,20.5477,254.1,254.04,5.45233412]
[1732522207325,20.5477,254.1,254.07,20.0]
[1732522207527,20.5477,254.1,254.07,25.47400078]
[1732522207865,20.5477,254.1,254.08,1.1807]
[1732522208040,20.5477,254.1,254.08,6.65470078]
[1732522208226,4.0,254.11,254.09,5.47400078]
[1732522209946,4.0,254.11,254.09,6.65460078]
[1732522213728,4.0,254.11,254.09,11.39617511]
[1732522213943,4.0,254.11,254.1,4.74157433]
[1732522214187,4.0,254.11,254.1,10.13540122]
[1732522215433,4.0,254.11,254.1,5.39382689]
[1732522217332,4.0,254.11,254.09,1.1806]
[1732522218290,4.0,254.11,254.04,5.09606761]
[1732522218556,4.0,254.11,254.07,20.0]
[1732522218924,4.0,254.11,254.07,25.09606761]
[1732522219128,4.0,254.11,254.08,5.09606761]
[1732522219335,4.0,254.11,254.1,20.0]
[1732522227966,4.0,254.11,254.1,25.09606761]
[1732522234449,4.0,254.11,254.1,29.57672761]
[1732522235346,4.0,254.11,254.1,25.09606761]
[1732522235863,4.0,254.11,254.09,1.1806]
[1732522236747,4.0,254.11,254.09,6.71000095]
[1732522236995,4.0,254.11,254.1,5.52940095]
[1732522238253,4.0,254.11,254.07,1.1807]
[1732522238746,4.0,254.11,254.07,6.71010095]
[1732522238949,4.0,254.11,254.08,5.52940095]
[1732522239665,4.0,254.11,254.1,20.0]
[1732522239861,4.0,254.11,254.1,25.52940095]
[1732522240368,4.0,254.11,254.1,5.52940095]
[1732522241674,4.0,254.11,254.05,1.1808]
[1732522241845,6.95484421,254.1,254.05,1.1808]
[1732522242050,6.95484421,254.1,254.03,1.1809]
[1732522242359,6.95484421,254.06,254.01,5.52940095]
[1732522242566,6.95484421,254.04,254.01,5.52940095]
[1732522242867,6.95484421,254.04,254.0,4.48066]
[1732522242868,21.8026,254.03,254.0,4.48066]
[1732522243076,6.95484421,254.02,254.0,4.48066]
[1732522244152,21.8026,254.03,254.0,4.48066]
[1732522246361,21.8026,254.03,253.96,5.52940095]
[1732522246572,6.95484421,254.02,253.96,5.52940095]
[1732522247470,21.8026,254.03,253.96,6.71060095]
[1732522247673,21.8026,254.03,253.96,11.19126095]
[1732522249658,21.8026,254.03,253.99,20.0]
[1732522249975,21.8026,254.03,253.96,5.66186]
[1732522250355,21.8026,254.03,253.96,11.17992263]
[1732522252677,21.8026,254.03,253.99,20.0]
[1732522252866,21.8026,254.03,254.0,20.0]
[1732522253180,21.8026,254.03,254.01,1.181]
[1732522253478,21.8026,254.03,254.0,21.181]
[1732522255172,8.1043,254.1,254.0,21.181]
[1732522255372,25.4685,254.11,254.04,20.0]
[1732522255722,4.0,254.11,254.05,5.80628937]
[1732522255887,4.0,254.11,254.08,20.0]
[1732522256257,4.0,254.11,254.08,25.80628937]
[1732522256461,4.0,254.11,254.09,5.80628937]
[1732522257359,4.0,254.11,254.1,1.1806]
[1732522261266,4.0,254.11,254.08,1.1807]
[1732522261466,4.0,254.11,254.08,6.98698937]
[1732522261877,4.0,254.11,254.1,20.0]
[1732522262383,4.0,254.11,254.1,21.1806]
[1732522263083,4.0,254.11,254.1,6.98688937]
[1732522265263,4.0,254.11,254.1,11.46754937]
[1732522284603,34.0725,254.11,253.91,10.0]
[1732522284941,34.0725,254.11,253.92,37.85835766]
[1732522285103,34.0725,254.11,253.92,28.99553263]
[1732522285498,34.0725,254.11,253.94,10.0]
[1732522285698,34.0725,254.11,253.95,13.08783263]
[1732522286008,34.0725,254.11,253.98,20.0]
[1732522286189,34.0725,254.11,253.99,4.90590597]
[1732522287701,34.0725,254.11,254.0,4.1338]
[1732522288049,34.0725,254.11,254.01,4.90590597]
[1732522288188,34.0725,254.11,254.03,20.0]
[1732522288501,34.0725,254.11,254.04,5.1442393]
[1732522288807,34.0725,254.11,254.07,20.0]
[1732522288997,4.0,254.11,254.1,20.0]
[1732522289890,4.0,254.11,254.1,21.1806]
[1732522290688,4.0,254.11,254.1,6.54872819]
[1732522301011,4.0,254.11,254.1,1.1806]
[1732522301902,4.0,254.11,254.06,1.5744]
[1732522302102,4.0,254.11,254.09,20.0]
[1732522302321,4.0,254.11,254.1,20.0]
[1732522304020,4.0,254.11,254.1,21.5741]
[1732522308004,4.0,254.11,254.08,1.5742]
[1732522309732,4.0,254.11,254.1,20.0]
[1732522310813,4.0,254.11,254.1,5.26768153]
[1732522312020,4.0,254.11,254.09,20.0]
[1732522313900,4.0,254.11,254.09,25.26768153]
[1732522315507,4.0,254.11,254.1,1.5741]
[1732522321319,4.0,254.11,254.09,5.26768153]
[1732522321633,4.0,254.11,254.1,1.1806]
[1732522321933,4.0,254.11,254.09,5.26768153]
[1732522324014,4.0,254.11,254.09,6.44828153]
[1732522324525,4.0,254.11,254.1,5.26768153]
[1732522325434,4.0,254.11,254.1,6.44828153]
[1732522329536,4.0,254.11,254.1,5.26768153]
[1732522333136,4.0,254.11,254.07,1.1807]
[1732522333339,4.0,254.11,254.07,21.1807]
[1732522338472,4.0,254.11,254.08,5.39334819]
[1732522339470,4.0,254.11,254.08,6.57404819]
[1732522340647,4.0,254.11,254.08,5.39334819]
[1732522340845,4.0,254.11,254.04,1.1808]
[1732522341028,20.752,254.1,254.02,1.1809]
[1732522341431,8.479,254.09,254.02,1.1809]
[1732522342249,8.479,254.09,254.02,6.57424819]
[1732522344944,8.479,254.09,254.02,5.39334819]
[1732522345149,16.22094421,254.09,254.0,21.181]
[1732522345532,6.95484421,254.03,253.96,5.09369819]
[1732522348049,21.7193,254.04,253.96,5.09369819]
[1732522348629,21.7193,254.04,253.97,1.1812]
[1732522351728,21.7193,254.04,253.96,5.09369819]
[1732522351729,6.95484421,254.03,253.96,5.09369819]
[1732522353848,7.74214421,254.03,253.96,5.09369819]
[1732522354152,8.8349,254.02,253.93,20.0]
[1732522354747,8.8349,254.02,253.96,20.0]
[1732522354955,8.8349,254.02,253.94,5.09369819]
[1732522355137,8.8349,254.02,253.97,20.0]
[1732522356251,8.8349,254.02,253.97,21.1812]
[1732522356426,21.7193,254.04,253.98,5.09369819]
[1732522357848,21.7193,254.04,253.99,1.1811]
[1732522359353,21.7193,254.04,253.99,6.27479819]
[1732522361550,21.7193,254.04,253.97,1.5749]
[1732522361737,21.7193,254.04,253.98,20.0]
[1732522363958,21.7193,254.04,253.98,21.5749]
[1732522364279,21.7193,254.04,253.99,5.09369819]
[1732522365036,21.7193,254.04,253.99,6.66849819]
[1732522366069,21.431,254.07,253.99,6.66849819]
[1732522366359,28.38584421,254.07,253.99,6.66849819]
[1732522369351,23.776884,254.06,253.99,5.09369819]
[1732522370040,29.17294421,254.07,253.99,6.66849819]
[1732522371463,29.17294421,254.07,253.99,5.09369819]
[1732522372670,29.17294421,254.07,253.99,6.27479819]
[1732522375138,21.431,254.07,253.99,6.27479819]
[1732522379458,4.0,254.11,254.02,20.0]
[1732522379785,4.0,254.11,254.03,5.72925375]
[1732522380781,4.0,254.11,254.03,6.91015375]
[1732522381575,4.0,254.11,254.03,1.1809]
[1732522381768,4.0,254.11,253.99,2.9528]
[1732522381958,4.0,254.11,253.99,4.1339]
[1732522382758,4.0,254.11,253.99,24.1339]
[1732522386477,23.776884,254.1,253.99,1.1811]
[1732522386658,6.95484421,254.09,253.99,1.1811]
[1732522387454,30.73172821,254.1,253.99,1.1811]
[1732522387866,31.51882821,254.1,253.99,1.1811]
[1732522388178,30.73172821,254.08,253.95,20.0]
[1732522388761,30.73172821,254.08,253.96,20.0]
[1732522388966,23.776884,254.08,253.96,20.0]
[1732522389283,6.95484421,254.08,253.96,20.0]
[1732522389488,23.776884,254.07,253.95,20.0]
[1732522389988,23.776884,254.07,253.96,1.1812]
[1732522390166,24.563984,254.07,253.96,1.1812]
[1732522390486,23.776884,254.07,253.96,1.1812]
[1732522390679,23.776884,254.08,253.96,1.1812]
[1732522390872,4.0,254.11,253.96,1.1812]
[1732522391085,23.776884,254.1,253.96,4.1344]
[1732522391392,4.0,254.11,253.96,7.8977515]
[1732522391764,4.0,254.11,253.99,20.0]
[1732522391965,4.0,254.11,254.0,1.1811]
[1732522392274,4.0,254.11,254.0,4.1338]
[1732522392689,4.0,254.11,254.01,23.7633515]
[1732522392990,4.0,254.11,254.03,20.0]
[1732522394067,4.0,254.11,254.04,1.1809]
[1732522394568,4.0,254.11,254.08,20.0]
[1732522394890,4.0,254.11,254.08,25.72687207]
[1732522395769,4.0,254.11,254.09,1.1806]
[1732522396179,4.0,254.11,254.08,5.72687207]
[1732522400691,4.0,254.11,254.08,6.90757207]
[1732522402092,4.0,254.11,254.08,5.72687207]
[1732522402392,6.95484421,254.1,254.03,21.1809]
[1732522402686,6.95484421,254.1,254.04,20.0]
[1732522403066,6.95484421,254.1,254.04,21.1809]
[1732522404195,6.95484421,254.1,254.04,6.90777207]
[1732522404669,6.95484421,254.1,254.04,5.72687207]
[1732522405589,33.79454421,254.11,254.04,5.72687207]
[1732522405798,6.95484421,254.09,254.04,5.72687207]
[1732522406478,6.95484421,254.07,253.99,1.1811]
[1732522406678,6.95484421,254.07,253.99,6.90797207]
[1732522409394,6.95484421,254.09,253.99,6.90797207]
[1732522411671,26.0527,254.11,254.02,20.0]
[1732522411993,26.0527,254.11,254.03,5.72687207]
[1732522413278,26.0527,254.11,254.04,1.1809]
[1732522413479,26.0527,254.11,254.05,5.74131651]
[1732522414480,26.0527,254.11,254.05,6.92211651]
[1732522415102,4.0,254.11,254.05,6.92211651]
[1732522429494,4.0,254.11,254.0,1.1811]
[1732522431304,4.0,254.11,254.04,1.1809]
[1732522434901,4.0,254.11,254.04,6.75583818]
[1732522435984,6.95484421,254.09,253.94,21.0271]
[1732522436204,6.95484421,254.09,253.97,1.1812]
[1732522436410,6.95484421,254.09,253.97,6.75613818]
[1732522436588,6.95484421,254.09,253.98,5.57493818]
[1732522437208,0.7871,254.1,253.99,1.1811]
[1732522437411,6.95484421,254.09,254.0,5.57493818]
[1732522438418,6.95484421,254.09,254.01,1.181]
[1732522438711,6.95484421,254.09,254.02,5.57493818]
[1732522440717,7.74194421,254.1,254.02,6.75583818]
[1732522440885,4.0,254.11,254.02,6.75583818]
[1732522442098,4.787,254.11,254.02,6.75583818]
[1732522443207,4.0,254.11,254.02,6.75583818]
[1732522443409,4.0,254.11,254.05,20.0]
[1732522443611,4.0,254.11,254.06,5.57493818]
[1732522444832,4.0,254.11,254.07,1.1807]
[1732522445117,4.0,254.11,254.09,20.0]
[1732522445315,4.0,254.11,254.1,20.0]
[1732522445520,4.0,254.11,254.1,5.76993818]
[1732522447014,4.0,254.11,254.1,6.95053818]
[1732522468826,4.0,254.11,254.1,39.52304877]
[1732522469527,4.0,254.11,254.1,43.44804877]
[1732522472101,4.0,254.11,254.1,51.17816185]
[1732522473132,4.0,254.11,254.1,27.40127785]
[1732522473505,4.0,254.11,254.1,23.47627785]
[1732522476106,4.0,254.11,254.1,15.74616477]
[1732522479641,4.0,254.11,254.1,19.67116477]
[1732522479820,4.0,254.11,254.1,15.74616477]
[1732522490224,4.0,254.11,254.1,11.79503549]
[1732522493747,4.0,254.11,254.05,4.84449731]
[1732522494120,4.0,254.11,254.06,5.78765942]
[1732522494730,4.0,254.11,254.09,20.0]
[1732522495246,4.0,254.11,254.08,20.0]
[1732522497547,4.0,254.11,254.06,1.1808]
[1732522497855,4.0,254.11,254.08,20.0]
[1732522499548,4.0,254.11,254.07,1.1807]
[1732522501837,4.0,254.11,254.08,5.78765942]
[1732522503252,4.0,254.11,254.08,6.96835942]
[1732522503453,4.0,254.11,254.08,5.78765942]
[1732522503753,10.95484421,254.11,254.04,1.1808]
[1732522504446,10.95484421,254.11,253.99,1.1811]
[1732522504745,21.8414,254.1,253.99,1.1811]
[1732522504944,15.30294421,254.09,253.99,1.1811]
[1732522505151,6.95484421,254.06,253.99,1.1811]
[1732522505457,15.57554421,254.04,253.98,4.84449731]
[1732522505751,15.57554421,254.04,253.84,18.0038]
[1732522505752,15.57554421,254.04,253.94,1.1813]
[1732522506953,15.57554421,254.04,253.95,20.0]
[1732522507153,8.6207,254.04,253.95,20.0]
[1732522507464,21.8787,254.05,253.97,20.0]
[1732522507751,21.8787,254.05,253.98,4.84449731]
[1732522508149,8.4248,254.1,254.01,20.0]
[1732522508348,8.4248,254.1,254.02,4.84449731]
[1732522508853,8.4248,254.1,254.05,20.0]
[1732522510248,8.4248,254.1,254.06,5.9754372]
[1732522511654,24.0408,254.11,254.09,20.0]
[1732522511861,4.0,254.11,254.1,5.9754372]
[1732522512451,4.0,254.11,254.1,7.5495372]
[1732522512659,4.0,254.11,254.1,5.9754372]
[1732522513246,4.0,254.11,254.07,1.5743]
[1732522513736,4.0,254.11,254.05,21.5744]
[1732522516949,4.0,254.11,254.05,25.5106]
[1732522517154,4.0,254.11,254.05,30.35509731]
[1732522517859,4.0,254.11,254.09,20.0]
[1732522518061,4.0,254.11,254.09,25.9754372]
[1732522518268,4.0,254.11,254.1,5.9754372]
[1732522519046,4.0,254.11,254.1,7.5495372]
[1732522521262,4.0,254.11,254.1,1.5741]
[1732522523958,4.0,254.11,254.1,7.5495372]
[1732522528366,4.0,254.11,254.1,1.5741]
[1732522528861,4.0,254.11,254.1,21.5741]
[1732522530864,4.0,254.11,254.1,1.5741]
[1732522531372,4.0,254.11,254.1,7.5495372]
[1732522533366,4.0,254.11,254.1,5.9754372]
[1732522533580,4.0,254.11,254.1,7.5495372]
[1732522533751,4.0,254.11,254.1,5.9754372]
[1732522534067,4.0,254.11,254.06,1.5743]
[1732522534477,4.0,254.11,254.06,7.5497372]
[1732522534862,4.0,254.11,254.07,5.9754372]
[1732522536056,4.0,254.11,254.07,7.5497372]
[1732522537955,4.0,254.11,254.07,5.9754372]
[1732522538688,21.2222,254.1,254.07,5.9754372]
[1732522538856,21.2222,254.1,254.01,27.40246442]
[1732522539053,21.2222,254.1,254.04,5.82776442]
[1732522539286,21.2222,254.1,254.01,21.5747]
[1732522540875,21.2222,254.1,254.01,6.41919731]
[1732522541081,21.2222,254.1,254.04,20.0]
[1732522542163,21.2222,254.1,254.05,21.5744]
[1732522543053,21.2222,254.1,254.05,25.5106]
[1732522543261,21.2222,254.1,254.05,30.35509731]
[1732522543471,4.0,254.11,254.06,23.776884]
[1732522543668,4.0,254.11,254.09,20.0]
[1732522544158,4.0,254.11,254.1,1.5741]
[1732522545066,4.0,254.11,254.06,28.62138131]
[1732522545067,4.0,254.11,254.06,4.84449731]
[1732522545267,4.0,254.11,254.07,21.5743]
[1732522545471,4.0,254.11,254.05,1.5744]
[1732522545681,4.0,254.11,254.05,7.40216442]
[1732522545883,4.0,254.11,254.06,5.82776442]
[1732522546272,4.0,254.11,254.07,1.5743]
[1732522546485,4.0,254.11,254.08,5.82776442]
[1732522547490,4.0,254.11,254.1,20.0]
[1732522547671,4.0,254.11,254.1,25.82776442]
[1732522548789,4.0,254.11,254.1,5.82776442]
[1732522549985,4.0,254.11,254.07,1.5743]
[1732522550687,4.0,254.11,254.06,21.5744]
[1732522550886,4.0,254.11,254.04,21.5745]
[1732522551768,4.0,254.11,254.04,1.5745]
[1732522552164,4.0,254.11,254.01,10.67226173]
[1732522552379,22.0797,254.1,254.02,1.5746]
[1732522558690,22.0797,254.1,254.03,5.82776442]
[1732522559674,22.0797,254.1,254.04,1.5745]
[1732522559901,22.0797,254.1,254.04,7.40226442]
[1732522560076,22.0797,254.1,254.05,5.82776442]
[1732522560985,22.8667,254.1,254.05,5.82776442]
[1732522561989,22.0797,254.1,254.05,5.82776442]
[1732522564308,22.0797,254.1,254.02,1.5746]
[1732522567412,22.0797,254.1,254.03,5.82776442]
[1732522568907,22.0797,254.1,254.06,20.0]
[1732522569079,4.0,254.11,254.07,5.7487822]
[1732522569283,4.0,254.11,254.1,20.0]
[1732522569485,4.0,254.11,254.1,25.7487822]
[1732522570506,4.0,254.11,254.1,27.3228822]
[1732522571088,4.0,254.11,254.1,26.9293822]
[1732522571705,4.0,254.11,254.1,32.19493506]
[1732522572091,4.0,254.11,254.1,55.97181906]
[1732522577301,4.0,254.11,254.1,59.98532208]
[1732522577812,182.41278846,254.12,254.11,43.776884]
[1732522577813,175.19708628,254.12,254.11,43.776884]
[1732522578117,175.19708628,254.12,254.11,58.97783874]
[1732522578311,122.30408628,254.12,254.11,58.97783874]
[1732522579524,122.30408628,254.12,254.11,66.72556348]
[1732522579718,53.73078809,254.12,254.11,66.72556348]
[1732522580025,43.02833804,254.12,254.11,66.72556348]
[1732522580324,38.13263804,254.12,254.11,66.72556348]
[1732522580492,38.13263804,254.12,254.11,76.72556348]
[1732522580696,33.17863804,254.12,254.11,76.72556348]
[1732522580913,33.17863804,254.12,254.11,66.72556348]
[1732522581221,33.17863804,254.12,254.11,38.97783874]
[1732522583528,28.67863804,254.12,254.11,38.97783874]
[1732522583814,25.28163804,254.12,254.11,38.97783874]
[1732522583992,143.07543051,254.16,254.15,23.776884]
[1732522584197,143.07543051,254.16,254.15,43.71228588]
[1732522584198,122.34371816,254.16,254.15,43.71228588]
[1732522584495,112.07861667,254.16,254.15,48.97783874]
[1732522584696,108.46451667,254.16,254.15,48.97783874]
[1732522584897,99.78991667,254.16,254.15,48.97783874]
[1732522585107,97.11561667,254.16,254.15,38.97783874]
[1732522585317,94.66071667,254.16,254.15,50.15823874]
[1732522585522,90.16071667,254.16,254.15,50.15823874]
[1732522585897,83.32081667,254.16,254.15,50.15823874]
[1732522586119,70.47960513,254.21,254.2,20.0]
[1732522586312,70.47960513,254.21,254.2,49.04243686]
[1732522586514,70.47960513,254.21,254.2,54.96433572]
[1732522587215,70.47960513,254.21,254.2,58.97783874]
[1732522587525,70.47960513,254.21,254.2,60.15793874]
[1732522590209,70.47960513,254.21,254.2,16.38105474]
[1732522590401,70.47960513,254.21,254.2,12.36755172]
[1732522590603,70.47960513,254.21,254.2,5.92189886]
[1732522596607,70.47960513,254.21,254.2,29.69878286]
[1732522598536,70.47960513,254.21,254.2,34.96433572]
[1732522600030,70.47960513,254.21,254.2,11.18745172]
[1732522600729,70.47960513,254.21,254.2,5.92189886]
[1732522602115,70.47960513,254.21,254.18,1.1802]
[1732522602515,70.47960513,254.21,254.19,5.92189886]
[1732522603938,70.47960513,254.21,254.2,1.1801]
[1732522606335,70.47960513,254.21,254.2,7.10199886]
[1732522607728,70.47960513,254.21,254.2,12.36755172]
[1732522610140,69.97960513,254.21,254.2,12.36755172]
[1732522615937,69.97960513,254.21,254.2,11.18745172]
[1732522616144,69.97960513,254.21,254.15,1.1804]
[1732522617235,69.97960513,254.21,254.17,20.0]
[1732522618626,69.97960513,254.21,254.18,1.1802]
[1732522624636,69.97960513,254.21,254.16,1.1803]
[1732522627750,69.97960513,254.21,254.16,4.1311]
[1732522630650,69.97960513,254.21,254.16,1.1803]
[1732522631254,69.97960513,254.21,254.13,4.1316]
[1732522631960,69.97960513,254.21,254.15,20.0]
[1732522632124,69.97960513,254.21,254.16,20.0]
[1732522632327,69.97960513,254.21,254.17,1.1803]
[1732522634348,69.97960513,254.21,254.2,20.0]
[1732522634732,69.97960513,254.21,254.17,1.1803]
[1732522635052,68.06302801,254.21,254.17,1.1803]
[1732522638261,68.06302801,254.21,254.17,6.68213997]
[1732522638765,68.06302801,254.21,254.2,20.0]
[1732522640263,68.06302801,254.21,254.2,21.1801]
[1732522643139,60.83541362,254.21,254.2,1.1801]
[1732522643340,53.60779923,254.21,254.2,11.6545595]
[1732522643540,31.92495606,254.21,254.2,11.6545595]
[1732522643769,24.69734167,254.21,254.2,11.6545595]
[1732522646769,24.69734167,254.21,254.2,19.43781879]
[1732522647140,24.69734167,254.21,254.2,11.6545595]
[1732522649965,22.13984167,254.21,254.2,35.4314435]
[1732522650174,17.97084167,254.21,254.2,39.22163541]
[1732522650857,12.78154167,254.21,254.2,39.22163541]
[1732522651065,10.37844167,254.21,254.2,39.22163541]
[1732522651264,5.48154167,254.21,254.2,39.22163541]
[1732522651464,1.07774167,254.21,254.2,39.22163541]
[1732522651650,4.167e-05,254.21,254.2,39.22163541]
[1732522654579,4.167e-05,254.21,254.2,43.14663541]
[1732522659667,4.167e-05,254.21,254.2,39.22163541]
[1732522660272,4.167e-05,254.21,254.2,43.14663541]
[1732522661354,4.167e-05,254.21,254.2,39.22163541]
[1732522662464,4.167e-05,254.21,254.2,43.14663541]
[1732522668063,4.167e-05,254.21,254.2,39.3564435]
[1732522668272,4.167e-05,254.21,254.2,43.14663541]
[1732522668474,4.167e-05,254.21,254.2,39.3564435]
[1732522669663,4.167e-05,254.21,254.2,39.3524435]
[1732522669866,4.167e-05,254.21,254.2,35.4314435]
[1732522670864,4.167e-05,254.21,254.2,39.3524435]
[1732522673986,4.167e-05,254.21,254.2,35.4314435]
[1732522674659,4.167e-05,254.21,254.2,11.6545595]
[1732522676063,4.167e-05,254.21,254.2,35.4314435]
[1732522677085,4.167e-05,254.21,254.2,39.22162707]
[1732522679064,4.167e-05,254.21,254.2,43.14262707]
[1732522679506,4.167e-05,254.21,254.2,39.3524435]
[1732522680594,182.41278846,254.29,254.23,20.0]
[1732522680766,182.41278846,254.29,254.24,30.28721617]
[1732522681090,182.41278846,254.29,254.24,10.28721617]
[1732522681279,182.41278846,254.29,254.27,20.0]
[1732522681484,182.41278846,254.29,254.28,6.49439664]
[1732522681668,182.41278846,254.29,254.28,11.46701617]
[1732522685192,182.41278846,254.29,254.28,15.61108863]
[1732522686270,182.41278846,254.29,254.28,10.6384691]
[1732522691274,182.41278846,254.29,254.28,15.61108863]
[1732522712507,195.33688846,254.29,254.2,2.9503]
[1732522712707,195.33688846,254.29,254.22,5.33452997]
[1732522712890,195.33688846,254.29,254.22,10.3071495]
[1732522713215,195.33688846,254.29,254.23,4.97261953]
[1732522713396,195.33688846,254.29,254.24,5.33452997]
[1732522714709,195.33688846,254.29,254.25,1.1799]
[1732522714891,195.33688846,254.29,254.25,6.51442997]
[1732522716318,195.33688846,254.29,254.26,25.33452997]
[1732522717819,195.33688846,254.29,254.26,26.51432997]
[1732522719397,182.41278846,254.29,254.26,31.4869495]
[1732522719601,182.41278846,254.29,254.27,4.97261953]
[1732522719803,182.41278846,254.29,254.28,5.45730775]
[1732522720003,182.41278846,254.29,254.28,10.42992728]
[1732522720920,182.41278846,254.29,254.28,11.60972728]
[1732522731125,206.18967246,254.29,254.28,11.60972728]
[1732522731305,206.18967246,254.29,254.28,5.45730775]
[1732522731507,23.776884,254.28,254.24,1.1799]
[1732522731832,23.776884,254.28,254.24,11.71961228]
[1732522732926,23.776884,254.28,254.27,20.0]
[1732522733109,23.776884,254.28,254.27,25.56709275]
[1732522733310,23.776884,254.28,254.27,26.74689275]
[1732522737916,23.776884,254.28,254.27,25.56709275]
[1732522740936,23.776884,254.28,254.24,4.97261953]
[1732522741124,54.951784,254.26,254.23,1.18]
[1732522741609,54.951784,254.26,254.18,6.43796497]
[1732522742444,54.951784,254.26,254.19,4.97261953]
[1732522742623,54.951784,254.26,254.2,6.43786497]
[1732522742932,54.951784,254.26,254.23,20.0]
[1732522744609,54.951784,254.26,254.23,21.18]
[1732522745109,31.1749,254.26,254.24,20.0]
[1732522745420,31.1749,254.26,254.24,5.25776497]
[1732522746518,31.1749,254.26,254.25,1.1799]
[1732522746720,182.41278846,254.29,254.27,20.0]
[1732522746928,182.41278846,254.29,254.28,20.0]
[1732522747826,182.41278846,254.29,254.28,21.1798]
[1732522748825,182.41278846,254.29,254.28,26.69756497]
[1732522753325,182.41278846,254.29,254.28,25.51776497]
[1732522753528,23.776884,254.28,254.27,1.1798]
[1732522754156,23.776884,254.28,254.24,1.1799]
[1732522754652,32.2458,254.27,254.23,5.67665386]
[1732522754822,23.776884,254.24,254.18,1.1802]
[1732522755025,23.776884,254.24,254.17,4.97261953]
[1732522755349,23.776884,254.22,254.15,5.67665386]
[1732522755647,23.776884,254.15,254.01,1.181]
[1732522755946,23.776884,254.13,254.01,1.181]
[1732522756134,45.8295,254.12,254.01,1.181]
[1732522756322,23.776884,254.11,253.99,4.6959362]
[1732522756524,23.776884,254.11,253.99,5.8770362]
[1732522756936,23.776884,254.11,254.0,4.6959362]
[1732522757141,23.776884,254.11,254.0,9.55164006]
[1732522758427,23.776884,254.11,254.03,20.0]
[1732522758626,23.776884,254.11,254.03,4.85570386]
[1732522758827,23.776884,254.11,254.06,20.0]
[1732522759827,23.776884,254.11,254.07,1.1807]
[1732522763023,23.776884,254.11,254.03,20.0]
[1732522763644,23.776884,254.11,254.02,1.181]
[1732522764847,6.95484421,254.07,253.96,1.1812]
[1732522765056,23.776884,254.06,253.96,1.1812]
[1732522765227,20.13744421,254.05,253.96,1.1812]
[1732522765429,23.776884,254.02,253.92,4.6959362]
[1732522765647,30.73172821,254.02,253.94,1.1813]
[1732522765857,23.776884,254.02,253.94,1.1813]
[1732522767338,23.776884,254.02,253.95,20.0]
[1732522767734,23.776884,254.02,253.96,1.1812]
[1732522769155,30.3174,254.03,253.96,1.1812]
[1732522770041,30.3174,254.03,253.94,20.0]
[1732522770352,33.776884,254.02,253.95,20.0]
[1732522771243,23.776884,254.02,253.95,20.0]
[1732522771439,30.3174,254.03,253.95,20.0]
[1732522771943,30.3174,254.03,253.93,47.911784]
[1732522772156,30.3174,254.03,253.94,4.6959362]
[1732522772333,30.3174,254.03,253.98,20.0]
[1732522773960,13.1826,254.05,254.02,20.0]
[1732522774458,31.9706,254.09,254.06,20.0]
[1732522774661,12.4016,254.12,254.06,25.31792608]
[1732522774958,12.4016,254.12,254.1,20.0]
[1732522775652,12.4016,254.12,254.07,5.31792608]
[1732522775846,12.4016,254.12,254.03,21.1809]
[1732522776057,31.9706,254.15,254.04,4.6959362]
[1732522776362,31.9706,254.15,254.08,20.0]
[1732522776540,31.9706,254.15,254.09,10.01386228]
[1732522776740,31.9706,254.15,254.12,20.0]
[1732522776943,31.9706,254.15,254.13,5.31792608]
[1732522777149,12.0665,254.18,254.13,5.31792608]